bitfinex-derivatives/quotes_SOLF0:USTF0_20250630
["timestamp","ask_amount","ask_price","bid_price","bid_amount"]
[1751278923927,6.6513,150.31,150.29,6.6519]
[1751278924626,6.6513,150.31,150.28,14.69868878]
[1751278924820,8.46587662,150.3,150.28,6.6524]
[1751278925918,6.652,150.3,150.28,6.6524]
[1751278926122,6.652,150.3,150.27,14.69908878]
[1751278926323,6.652,150.3,150.27,8.04628878]
[1751278926721,8.46537662,150.31,150.28,6.6524]
[1751278927730,6.6515,150.31,150.28,6.6524]
[1751278928027,8.46537662,150.31,150.28,6.6524]
[1751278928329,8.46537662,150.31,150.29,6.6521]
[1751278929726,6.6515,150.31,150.29,6.6521]
[1751278929927,8.46537662,150.31,150.29,6.6521]
[1751278930936,6.6515,150.31,150.29,6.6521]
[1751278932534,33.44,150.35,150.28,1.81387662]
[1751278932828,1.81387662,150.33,150.29,1.81387662]
[1751278933026,8.46447662,150.33,150.31,6.651]
[1751278933829,8.46447662,150.33,150.3,6.6516]
[1751278934031,6.6509,150.32,150.3,6.6516]
[1751278935035,6.6509,150.32,150.29,14.69828878]
[1751278935234,1.81387662,150.31,150.28,41.93181216]
[1751278935439,1.81387662,150.3,150.28,33.4]
[1751278935736,6.6522,150.29,150.27,6.23241216]
[1751278936438,6.6522,150.29,150.27,12.88541216]
[1751278936631,6.6522,150.29,150.27,6.653]
[1751278938835,8.46587662,150.3,150.27,6.653]
[1751278939135,8.46587662,150.3,150.28,6.6525]
[1751278940641,8.46537662,150.31,150.27,1.81387662]
[1751278941138,1.81387662,150.32,150.28,1.81387662]
[1751278941335,8.46497662,150.32,150.3,6.6515]
[1751278944437,128.86,150.33,150.3,6.6515]
[1751278944438,6.6506,150.33,150.31,6.6513]
[1751278944741,33.44,150.35,150.3,1.81387662]
[1751278944742,1.81387662,150.34,150.3,1.81387662]
[1751278944932,35.25387662,150.35,150.29,39.63241216]
[1751278945142,33.4,150.38,150.32,1.81387662]
[1751278945441,8.46317662,150.36,150.33,6.6503]
[1751278945742,8.46317662,150.36,150.32,1.81387662]
[1751278945943,8.46317662,150.36,150.33,6.6503]
[1751278946144,8.46317662,150.36,150.32,1.81387662]
[1751278946334,33.4,150.38,150.34,1.81387662]
[1751278946538,35.21387662,150.38,150.35,6.6493]
[1751278946938,6.648,150.39,150.35,1.81387662]
[1751278947145,6.648,150.39,150.36,6.6488]
[1751278947445,8.46187662,150.39,150.36,6.6488]
[1751278949040,1.81387662,150.38,150.33,41.88101216]
[1751278949245,1.81387662,150.34,150.29,6.23241216]
[1751278949542,1.81387662,150.32,150.29,6.23241216]
[1751278949732,1.81387662,150.33,150.3,6.6514]
[1751278949934,1.81387662,150.34,150.3,1.81387662]
[1751278950341,6.6496,150.35,150.32,6.6506]
[1751278950542,8.46347662,150.35,150.32,6.6506]
[1751278951533,128.8,150.36,150.31,1.81387662]
[1751278951534,8.46387662,150.34,150.31,6.6511]
[1751278951937,8.46387662,150.34,150.3,1.81387662]
[1751278952338,8.46387662,150.34,150.31,6.651]
[1751278955144,6.6505,150.33,150.3,6.6515]
[1751278955344,1.81387662,150.34,150.3,1.81387662]
[1751278955850,8.46397662,150.34,150.31,6.6511]
[1751278956042,6.6501,150.34,150.31,6.6511]
[1751278956242,8.46397662,150.34,150.31,6.6511]
[1751278956644,6.6504,150.33,150.31,6.6511]
[1751278958051,8.46397662,150.34,150.31,6.6511]
[1751278958845,1.81387662,150.32,150.29,6.20925247]
[1751278959045,1.81387662,150.32,150.28,41.40312909]
[1751278959245,8.46477662,150.32,150.28,41.40312909]
[1751278959441,128.8,150.36,150.29,1.81387662]
[1751278959841,1.81387662,150.33,150.29,1.81387662]
[1751278960146,6.6503,150.34,150.29,1.81387662]
[1751278960346,8.46417662,150.34,150.29,1.81387662]
[1751278960851,8.46417662,150.34,150.31,6.6509]
[1751278961151,8.46417662,150.34,150.29,1.81387662]
[1751278961850,6.6503,150.34,150.31,6.6509]
[1751278962047,6.6503,150.34,150.28,42.42135266]
[1751278962352,6.6503,150.34,150.31,6.6508]
[1751278962946,6.6503,150.34,150.32,6.6508]
[1751278963551,6.6503,150.34,150.31,6.651]
[1751278963752,6.6503,150.34,150.28,42.42135266]
[1751278964954,6.6504,150.33,150.28,39.58925247]
[1751278965249,6.6505,150.33,150.31,6.6509]
[1751278966050,6.6501,150.34,150.31,6.6509]
[1751278967756,6.6504,150.33,150.31,6.6509]
[1751278968254,2.83210019,150.35,150.31,6.6509]
[1751278968451,6.6503,150.34,150.31,6.6509]
[1751278969449,6.6504,150.33,150.3,6.6515]
[1751278971058,6.6504,150.33,150.31,6.6512]
[1751278973062,2.83210019,150.34,150.28,42.42135266]
[1751278973063,9.48230019,150.34,150.28,42.42135266]
[1751278973360,2.83210019,150.36,150.29,6.20925247]
[1751278973754,2.83210019,150.36,150.32,6.6505]
[1751278973755,6.6497,150.35,150.32,6.6505]
[1751278974158,6.6497,150.35,150.29,6.20925247]
[1751278974358,6.6497,150.35,150.32,6.6505]
[1751278974561,6.6496,150.35,150.29,6.20925247]
[1751278975358,9.48150019,150.36,150.3,9.04135266]
[1751278977160,9.48150019,150.36,150.33,6.65]
[1751278977459,6.6494,150.36,150.3,9.04135266]
[1751278977658,6.6494,150.36,150.31,6.20925247]
[1751278978761,6.6494,150.36,150.34,6.6499]
[1751278981959,1.81221402,150.35,150.34,6.6499]
[1751278982360,1.81221402,150.35,150.33,6.6502]
[1751278983063,8.46171402,150.35,150.33,6.6502]
[1751278983765,1.81221402,150.34,150.33,6.6502]
[1751278985566,1.81221402,150.34,150.32,6.6506]
[1751278986767,1.81221402,150.34,150.33,6.6501]
[1751278989266,33.38,150.37,150.32,1.81221402]
[1751278989464,1.81221402,150.35,150.32,8.02146649]
[1751278989867,33.38,150.37,150.3,8.27900329]
[1751278989868,1.81221402,150.34,150.31,6.20925247]
[1751278990062,1.81221402,150.34,150.32,6.6508]
[1751278990364,6.6498,150.35,150.32,6.6508]
[1751278990574,1.81221402,150.34,150.32,6.6508]
[1751278991569,6.6498,150.35,150.32,6.6508]
[1751278991764,1.81221402,150.34,150.32,6.6508]
[1751278992068,1.81221402,150.33,150.3,6.20925247]
[1751278992469,1.81221402,150.33,150.31,6.6513]
[1751278992666,1.81221402,150.34,150.31,6.20925247]
[1751278993066,1.81221402,150.34,150.32,6.6506]
[1751278996970,8.46231402,150.34,150.32,6.6506]
[1751278997271,1.81221402,150.33,150.31,6.20925247]
[1751278997471,1.81221402,150.33,150.28,33.38]
[1751278997472,1.81221402,150.32,150.3,6.20925247]
[1751278997780,2.83356369,150.31,150.29,6.20925247]
[1751278998076,2.83356369,150.31,150.28,6.20925247]
[1751278998273,2.83356369,150.29,150.25,6.20925247]
[1751278998473,6.6528,150.28,150.25,6.20925247]
[1751278998671,6.6528,150.28,150.24,6.20925247]
[1751278998871,2.83356369,150.29,150.24,6.20925247]
[1751278999271,2.83356369,150.29,150.23,8.36225247]
[1751278999470,6.6533,150.27,150.24,6.6542]
[1751278999775,9.48686369,150.27,150.24,6.6542]
[1751279001078,9.48686369,150.27,150.25,6.6539]
[1751279001878,9.48636369,150.28,150.25,6.6539]
[1751279004378,6.6531,150.27,150.25,6.6539]
[1751279005481,9.48636369,150.28,150.25,6.6539]
[1751279008083,6.6532,150.27,150.25,6.6539]
[1751279009682,9.48636369,150.28,150.25,6.6539]
[1751279010183,9.48636369,150.28,150.23,2.153]
[1751279010582,9.48636369,150.28,150.25,6.6536]
[1751279010880,39.9725,150.29,150.23,2.153]
[1751279011082,42.80606369,150.29,150.26,6.6531]
[1751279011382,36.15356369,150.29,150.23,8.36225247]
[1751279011584,33.32,150.29,150.23,8.36225247]
[1751279011878,33.32,150.29,150.23,11.19581616]
[1751279012278,6.6524,150.29,150.23,11.19581616]
[1751279012985,6.6524,150.29,150.26,6.6531]
[1751279013384,6.6524,150.29,150.23,11.19581616]
[1751279013884,6.652,150.3,150.23,11.19581616]
[1751279014283,6.652,150.3,150.27,6.6526]
[1751279015685,6.652,150.3,150.28,6.6526]
[1751279017383,6.652,150.3,150.27,6.6528]
[1751279018490,6.6522,150.29,150.27,6.6528]
[1751279018989,6.6519,150.3,150.27,6.6528]
[1751279019390,36.17356369,150.31,150.27,6.6528]
[1751279019985,6.6524,150.29,150.27,6.6528]
[1751279020192,36.17356369,150.31,150.26,6.6533]
[1751279021988,6.6526,150.28,150.26,6.6533]
[1751279023094,6.653,150.27,150.23,8.36225247]
[1751279023295,6.653,150.27,150.23,2.153]
[1751279023793,6.653,150.27,150.24,6.654]
[1751279024494,6.6536,150.26,150.24,6.654]
[1751279024694,6.6536,150.26,150.23,8.8076]
[1751279024990,6.6536,150.26,150.23,2.153]
[1751279025595,6.6536,150.26,150.24,6.6542]
[1751279025889,6.6542,150.25,150.23,2.153]
[1751279026096,6.6542,150.25,150.23,8.8076]
[1751279026796,6.6537,150.26,150.23,8.8076]
[1751279026997,6.6537,150.26,150.24,6.6542]
[1751279028199,6.6537,150.26,150.23,8.8076]
[1751279028593,6.6537,150.26,150.24,6.6543]
[1751279030897,6.6537,150.26,150.23,8.8077]
[1751279031104,6.654,150.25,150.23,8.8077]
[1751279031699,2.83356369,150.25,150.2,6.20925247]
[1751279031895,1.81498761,150.23,150.19,8.02424008]
[1751279032095,1.81498761,150.23,150.19,6.20925247]
[1751279032295,1.81498761,150.23,150.22,6.6553]
[1751279032494,8.46958761,150.24,150.22,6.6553]
[1751279033301,8.46958761,150.24,150.21,6.6555]
[1751279033503,8.46988761,150.23,150.21,6.6555]
[1751279033705,1.81498761,150.22,150.19,6.20925247]
[1751279034004,6.6551,150.23,150.2,6.6559]
[1751279035406,6.6551,150.23,150.21,6.6556]
[1751279035808,2.83645685,150.24,150.18,41.84215247]
[1751279035809,9.49105685,150.24,150.18,41.84215247]
[1751279036606,9.49105685,150.24,150.22,6.6551]
[1751279037298,6.654,150.25,150.23,6.6548]
[1751279037905,9.49015685,150.26,150.23,6.6548]
[1751279038409,6.654,150.25,150.23,6.6548]
[1751279039911,9.49015685,150.26,150.24,6.6543]
[1751279040113,33.3,150.27,150.24,6.6543]
[1751279040305,33.3,150.27,150.21,6.20925247]
[1751279040506,39.9533,150.27,150.24,6.654]
[1751279043313,6.6535,150.26,150.24,6.654]
[1751279043513,6.6535,150.26,150.23,6.6546]
[1751279046712,6.6543,150.25,150.22,6.6552]
[1751279051315,6.6544,150.24,150.22,6.6552]
[1751279053921,8.46918032,150.24,150.22,6.6552]
[1751279055221,6.6544,150.24,150.22,6.6552]
[1751279055421,8.46918032,150.24,150.22,6.6552]
[1751279057222,6.6544,150.24,150.22,6.6552]
[1751279057421,8.46918032,150.24,150.22,6.6552]
[1751279061827,1.81478032,150.24,150.22,6.6552]
[1751279062024,1.81478032,150.24,150.21,6.20925247]
[1751279062725,1.81478032,150.24,150.22,6.655]
[1751279064426,8.46918032,150.24,150.22,6.655]
[1751279065628,1.81478032,150.24,150.22,6.655]
[1751279066530,6.6542,150.25,150.23,6.6548]
[1751279066831,1.81478032,150.24,150.23,6.6548]
[1751279067030,1.81478032,150.24,150.22,6.655]
[1751279067331,1.81478032,150.24,150.22,12.86425247]
[1751279069438,8.46918032,150.24,150.22,12.86425247]
[1751279070439,8.46918032,150.24,150.22,6.20925247]
[1751279070633,8.46958032,150.23,150.22,1.76792935]
[1751279070832,1.81478032,150.23,150.19,8.27900329]
[1751279071036,1.81478032,150.2,150.19,8.27900329]
[1751279071637,1.81478032,150.2,150.18,6.6567]
[1751279072230,1.81478032,150.2,150.19,6.6566]
[1751279072932,8.47128032,150.2,150.17,48.21630329]
[1751279073136,1.81478032,150.19,150.17,33.28]
[1751279073537,1.81478032,150.2,150.18,6.657]
[1751279074938,8.47098032,150.2,150.18,6.657]
[1751279075139,1.81478032,150.2,150.18,6.657]
[1751279075938,6.656,150.21,150.18,6.657]
[1751279076129,1.81478032,150.2,150.18,6.657]
[1751279077235,1.81478032,150.21,150.19,6.6563]
[1751279078638,1.81478032,150.2,150.19,6.6563]
[1751279082738,6.6558,150.21,150.19,6.6563]
[1751279083042,1.81478032,150.2,150.19,6.6563]
[1751279086545,6.6558,150.21,150.19,6.6563]
[1751279086747,1.81478032,150.2,150.19,6.6563]
[1751279090050,1.81478032,150.2,150.18,6.6568]
[1751279091348,1.81478032,150.2,150.19,6.6566]
[1751279092950,33.24,150.24,150.19,6.6566]
[1751279093151,1.81478032,150.21,150.17,35.09478032]
[1751279093450,1.81478032,150.21,150.17,33.28]
[1751279093749,1.81478032,150.2,150.18,6.6566]
[1751279094352,1.81478032,150.2,150.19,6.6566]
[1751279094551,1.81478032,150.2,150.17,35.09478032]
[1751279095149,1.81478032,150.2,150.18,6.6566]
[1751279098451,8.47108032,150.2,150.17,39.9373]
[1751279098650,1.81478032,150.19,150.17,6.6573]
[1751279101351,8.47138032,150.19,150.17,6.6573]
[1751279101553,1.81478032,150.19,150.17,6.6573]
[1751279103053,1.81478032,150.19,150.18,6.657]
[1751279104557,8.47158032,150.19,150.17,6.6572]
[1751279104753,1.81478032,150.18,150.17,6.6572]
[1751279106853,8.47208032,150.18,150.14,35.4089]
[1751279107055,1.81478032,150.16,150.14,35.4089]
[1751279107255,1.81478032,150.16,150.15,6.6581]
[1751279108755,1.81478032,150.17,150.16,6.6578]
[1751279108957,1.81478032,150.18,150.14,37.22368032]
[1751279109457,1.81478032,150.18,150.16,6.6577]
[1751279110757,1.81478032,150.17,150.16,6.6577]
[1751279111253,1.81478032,150.17,150.15,6.6581]
[1751279111449,1.81478032,150.16,150.12,12.86230329]
[1751279111647,1.81478032,150.14,150.11,41.47900329]
[1751279111852,1.81478032,150.14,150.12,6.6594]
[1751279112059,1.81478032,150.13,150.12,6.6594]
[1751279114161,6.6581,150.16,150.11,33.2]
[1751279114360,1.81478032,150.14,150.11,33.2]
[1751279115056,6.6577,150.17,150.11,35.01478032]
[1751279115363,1.81478032,150.15,150.12,1.81478032]
[1751279115859,1.81478032,150.15,150.11,35.01478032]
[1751279116460,6.6573,150.18,150.11,35.01478032]
[1751279116658,1.81478032,150.17,150.13,1.81478032]
[1751279116858,6.6573,150.18,150.14,1.81478032]
[1751279116859,1.81478032,150.18,150.14,1.81478032]
[1751279119065,1.81478032,150.18,150.17,6.6571]
[1751279119468,1.81478032,150.19,150.18,6.6568]
[1751279122770,60.68443727,150.22,150.17,1.81478032]
[1751279122967,1.81478032,150.21,150.17,1.81478032]
[1751279123171,1.81478032,150.21,150.2,6.6561]
[1751279124175,1.81478032,150.21,150.15,33.2]
[1751279124176,33.2,150.23,150.19,1.81478032]
[1751279124369,35.01478032,150.23,150.19,1.81478032]
[1751279125468,33.2,150.23,150.16,8.27900329]
[1751279125669,33.2,150.23,150.2,1.81478032]
[1751279125869,33.2,150.23,150.18,2.83575385]
[1751279126272,33.2,150.23,150.22,6.6553]
[1751279129377,33.2,150.23,150.21,6.6555]
[1751279130279,33.2,150.23,150.22,6.6553]
[1751279132076,33.2,150.26,150.19,6.21244303]
[1751279132282,33.2,150.26,150.19,46.09164303]
[1751279132478,39.8537,150.26,150.23,6.6546]
[1751279133278,6.6539,150.25,150.23,6.6546]
[1751279141092,164.55575385,150.26,150.24,6.6544]
[1751279141276,33.2,150.26,150.2,2.83575385]
[1751279141586,187.28888836,150.27,150.2,9.04819688]
[1751279141781,58.78888836,150.27,150.2,9.04819688]
[1751279142587,65.44198836,150.27,150.25,6.6537]
[1751279144391,65.44198836,150.27,150.24,6.6541]
[1751279144989,6.6536,150.26,150.24,6.6541]
[1751279147699,6.6539,150.25,150.23,6.6546]
[1751279147893,1.81438151,150.24,150.23,6.6546]
[1751279148692,8.46828151,150.25,150.23,6.6546]
[1751279153098,6.6539,150.25,150.23,6.6546]
[1751279153306,8.46828151,150.25,150.23,6.6546]
[1751279163707,8.46828151,150.25,150.24,6.6544]
[1751279163906,8.46828151,150.25,150.2,6.21244303]
[1751279164102,8.46828151,150.25,150.21,1.81438151]
[1751279164298,8.46828151,150.25,150.23,6.6545]
[1751279164704,8.46828151,150.25,150.21,8.02682454]
[1751279164705,1.81438151,150.25,150.21,8.02682454]
[1751279165102,1.81438151,150.25,150.24,6.6544]
[1751279166705,8.46828151,150.25,150.23,6.6547]
[1751279168905,1.81438151,150.25,150.24,6.6544]
[1751279169908,8.26280208,150.32,150.24,34.95438151]
[1751279170104,1.81438151,150.29,150.24,33.14]
[1751279170311,1.81438151,150.28,150.24,33.14]
[1751279170608,1.81438151,150.27,150.24,33.14]
[1751279171208,1.81438151,150.27,150.25,6.21244303]
[1751279171406,1.81438151,150.27,150.24,39.35244303]
[1751279171605,1.81438151,150.27,150.26,6.6535]
[1751279172205,6.652,150.3,150.25,1.81438151]
[1751279172502,1.81438151,150.3,150.26,1.81438151]
[1751279172702,1.81438151,150.3,150.25,1.81438151]
[1751279172912,1.81438151,150.29,150.25,1.81438151]
[1751279173411,1.81438151,150.29,150.25,8.02682454]
[1751279174603,1.81438151,150.29,150.28,6.6526]
[1751279175515,6.652,150.3,150.28,6.6526]
[1751279175714,1.81438151,150.3,150.28,6.6526]
[1751279176314,8.46608151,150.3,150.28,6.6526]
[1751279176915,1.81438151,150.3,150.28,6.6526]
[1751279177119,6.6515,150.31,150.28,6.6526]
[1751279177308,1.81438151,150.3,150.26,8.02682454]
[1751279177909,1.81438151,150.31,150.27,1.81438151]
[1751279178114,1.81438151,150.3,150.27,1.81438151]
[1751279178309,1.81438151,150.3,150.29,6.6522]
[1751279178805,1.81438151,150.31,150.27,1.81438151]
[1751279179017,1.81438151,150.31,150.28,1.81438151]
[1751279180210,1.81438151,150.31,150.29,6.6522]
[1751279181819,8.46568151,150.31,150.29,6.6522]
[1751279183421,128.36,150.32,150.27,1.81438151]
[1751279183422,8.46628151,150.3,150.27,6.6528]
[1751279183821,1.81438151,150.29,150.25,6.21244303]
[1751279184018,1.81438151,150.29,150.27,6.653]
[1751279184019,8.46688151,150.29,150.27,6.653]
[1751279184517,6.6525,150.29,150.27,6.653]
[1751279186423,6.6525,150.29,150.26,8.46768151]
[1751279187124,8.46688151,150.29,150.26,8.46768151]
[1751279188024,8.46688151,150.29,150.27,6.653]
[1751279188225,6.6525,150.29,150.27,6.653]
[1751279194224,21.56030208,150.37,150.28,1.81438151]
[1751279194432,1.81438151,150.32,150.29,1.81438151]
[1751279194922,1.81438151,150.3,150.26,8.02682454]
[1751279195124,128.32,150.33,150.26,1.81438151]
[1751279195125,1.81438151,150.29,150.26,1.81438151]
[1751279195325,33.1,150.32,150.26,1.81438151]
[1751279195523,1.81438151,150.31,150.29,6.6519]
[1751279196128,1.81438151,150.3,150.29,6.6519]
[1751279196328,8.46588151,150.31,150.29,6.6519]
[1751279196526,1.81438151,150.31,150.28,6.6524]
[1751279197027,8.46588151,150.31,150.28,6.6524]
[1751279198633,1.81438151,150.3,150.28,6.6524]
[1751279199727,1.81438151,150.3,150.29,6.6522]
[1751279202434,1.81438151,150.3,150.28,6.6524]
[1751279207027,1.81438151,150.3,150.26,1.81438151]
[1751279207832,1.81438151,150.3,150.28,6.6522]
[1751279208330,8.46588151,150.31,150.28,6.6522]
[1751279210334,6.6515,150.31,150.29,6.6521]
[1751279210528,8.46588151,150.31,150.29,6.6521]
[1751279210936,6.6517,150.3,150.28,6.6524]
[1751279212033,8.46608151,150.3,150.28,6.6524]
[1751279213639,1.81438151,150.3,150.28,6.6524]
[1751279215141,8.46628151,150.3,150.27,14.67962454]
[1751279215441,8.46628151,150.3,150.27,12.86524303]
[1751279219450,8.46628151,150.3,150.28,6.6526]
[1751279222443,1.81438151,150.3,150.28,6.6526]
[1751279223055,41.56548151,150.32,150.28,1.81438151]
[1751279223342,1.81438151,150.31,150.28,8.02682454]
[1751279224238,1.81438151,150.31,150.29,6.6519]
[1751279224549,8.46568151,150.31,150.29,6.6519]
[1751279233351,6.6513,150.31,150.29,6.6519]
[1751279233556,8.46568151,150.31,150.29,6.6519]
[1751279242460,6.6513,150.31,150.29,6.6519]
[1751279242961,8.46568151,150.31,150.29,6.6519]
[1751279259475,39.6511,150.32,150.29,6.6519]
[1751279259676,1.81438151,150.31,150.29,6.6519]
[1751279261580,1.81438151,150.31,150.3,6.6517]
[1751279262479,8.46568151,150.31,150.29,6.6519]
[1751279263779,6.6513,150.31,150.29,6.6519]
[1751279264988,6.6513,150.31,150.3,6.6517]
[1751279267383,6.6513,150.31,150.29,6.652]
[1751279267584,8.46447851,150.31,150.29,6.652]
[1751279268186,8.46447851,150.31,150.29,12.86444303]
[1751279270689,6.6513,150.31,150.29,12.86444303]
[1751279274990,8.46447851,150.31,150.29,12.86444303]
[1751279275190,6.6517,150.3,150.29,6.21244303]
[1751279275387,8.46487851,150.3,150.28,6.21244303]
[1751279275794,8.46531265,150.3,150.28,6.21244303]
[1751279276597,6.6522,150.29,150.28,6.21244303]
[1751279277192,6.6522,150.29,150.27,12.86534303]
[1751279277692,8.46621265,150.28,150.27,6.21244303]
[1751279277899,34.75361265,150.28,150.24,6.21244303]
[1751279278198,1.81361265,150.25,150.21,6.21244303]
[1751279278397,1.81361265,150.22,150.21,12.86814303]
[1751279279300,1.81361265,150.22,150.21,6.6557]
[1751279284795,39.5946,150.24,150.21,6.6557]
[1751279284997,1.81361265,150.22,150.21,6.6557]
[1751279287607,1.81361265,150.22,150.21,6.6557]
[1751279293610,8.46901265,150.22,150.17,14.70675568]
[1751279293802,1.81361265,150.21,150.17,14.70675568]
[1751279294401,1.81361265,150.21,150.17,8.49431265]
[1751279296607,1.81361265,150.21,150.2,6.6561]
[1751279312218,6.655,150.23,150.21,6.6556]
[1751279312416,1.81361265,150.22,150.21,6.6556]
[1751279326226,1.81361265,150.22,150.2,12.83520609]
[1751279326426,1.81361265,150.21,150.2,12.83520609]
[1751279327823,1.81361265,150.21,150.2,6.6559]
[1751279328027,39.5946,150.24,150.21,6.6554]
[1751279328226,1.81361265,150.22,150.21,12.87365789]
[1751279334328,1.81361265,150.25,150.21,8.03187054]
[1751279334524,32.86,150.26,150.23,6.21825789]
[1751279334730,8.46821265,150.24,150.22,6.21825789]
[1751279334927,1.81361265,150.23,150.22,6.21825789]
[1751279341737,1.81361265,150.24,150.22,6.21825789]
[1751279342034,1.81361265,150.25,150.22,6.21825789]
[1751279342532,32.86,150.26,150.23,1.81361265]
[1751279342731,32.86,150.26,150.24,6.21825789]
[1751279343134,8.46671265,150.27,150.25,6.6537]
[1751279345624,1.81361265,150.26,150.25,6.6537]
[1751279345828,8.46711265,150.26,150.24,6.6542]
[1751279346325,1.81361265,150.26,150.24,6.6542]
[1751279346736,167.4532,150.27,150.25,6.6539]
[1751279347031,1.81361265,150.26,150.25,6.6539]
[1751279347332,32.86,150.27,150.24,1.81361265]
[1751279348039,32.86,150.27,150.24,8.03187054]
[1751279348239,8.46591265,150.29,150.25,1.81361265]
[1751279348436,136.38591265,150.29,150.25,8.03187054]
[1751279348836,8.46591265,150.29,150.25,8.03187054]
[1751279349037,136.38591265,150.29,150.25,1.81361265]
[1751279349238,8.46591265,150.29,150.25,1.81361265]
[1751279349442,8.46591265,150.29,150.27,6.6528]
[1751279351842,136.36591265,150.29,150.27,6.6528]
[1751279352046,103.00321786,150.3,150.28,6.6526]
[1751279352047,111.46873051,150.3,150.28,6.6526]
[1751279352436,239.36873051,150.3,150.28,6.6526]
[1751279352641,230.90321786,150.3,150.29,6.6522]
[1751279353643,70.14321786,150.3,150.29,6.6522]
[1751279353847,198.04321786,150.3,150.29,6.6522]
[1751279354536,204.69501786,150.3,150.28,6.6524]
[1751279356946,6.6522,150.29,150.27,8.46641265]
[1751279357147,6.6522,150.29,150.27,6.6528]
[1751279357348,134.5322,150.29,150.27,6.6528]
[1751279358149,6.6522,150.29,150.27,6.6528]
[1751279358349,134.5322,150.29,150.27,6.6528]
[1751279358747,6.6522,150.29,150.27,6.6528]
[1751279358949,134.5322,150.29,150.27,6.6528]
[1751279360548,1.81361265,150.28,150.25,1.81361265]
[1751279360851,8.46641265,150.28,150.26,6.6534]
[1751279362052,6.6528,150.28,150.26,6.6534]
[1751279365454,136.32601265,150.29,150.27,6.653]
[1751279367358,8.46601265,150.29,150.27,6.653]
[1751279367563,136.30601265,150.29,150.27,6.653]
[1751279369564,129.65361265,150.29,150.27,6.653]
[1751279369960,127.84,150.29,150.28,6.6526]
[1751279371565,71.95683051,150.3,150.28,6.6526]
[1751279372066,199.77683051,150.3,150.29,6.6522]
[1751279372260,129.63361265,150.3,150.29,6.6522]
[1751279375571,129.63361265,150.3,150.28,6.6523]
[1751279376873,136.28531265,150.3,150.28,6.6523]
[1751279383379,134.4717,150.3,150.28,6.6523]
[1751279383578,1.81361265,150.32,150.28,1.81361265]
[1751279383783,1.81361265,150.32,150.27,6.21825789]
[1751279384083,1.81361265,150.31,150.28,1.81361265]
[1751279384582,8.46491265,150.31,150.29,6.6519]
[1751279387987,6.6513,150.31,150.29,6.6519]
[1751279388176,8.46491265,150.31,150.29,6.6519]
[1751279393604,6.6517,150.3,150.28,12.87065789]
[1751279394907,8.46511265,150.31,150.29,6.6522]
[1751279396305,8.46511265,150.31,150.28,12.87065789]
[1751279398407,8.46561265,150.3,150.28,6.21825789]
[1751279398603,1.81361265,150.29,150.27,6.21825789]
[1751279398811,1.81361265,150.28,150.26,6.21825789]
[1751279399611,8.46641265,150.28,150.26,12.87155789]
[1751279401515,6.653,150.27,150.26,6.21825789]
[1751279402209,8.46641265,150.28,150.26,6.21825789]
[1751279402811,8.46661265,150.27,150.26,6.21825789]
[1751279403008,1.81361265,150.27,150.24,6.21825789]
[1751279403205,1.81361265,150.25,150.24,6.21825789]
[1751279403414,1.81361265,150.25,150.22,6.21825789]
[1751279403715,1.81361265,150.24,150.23,6.6548]
[1751279404108,127.74,150.27,150.23,1.81361265]
[1751279404309,1.81361265,150.27,150.24,1.81361265]
[1751279404606,1.81361265,150.27,150.24,8.03187054]
[1751279406317,1.81361265,150.27,150.26,6.6535]
[1751279406718,1.81361265,150.28,150.26,6.6535]
[1751279407614,8.46631265,150.28,150.26,6.6535]
[1751279408123,1.81361265,150.27,150.25,6.6538]
[1751279408423,1.81361265,150.26,150.24,6.21825789]
[1751279408615,1.81361265,150.25,150.24,6.6543]
[1751279413625,1.81361265,150.25,150.22,6.21825789]
[1751279413829,1.81361265,150.24,150.21,38.95825789]
[1751279414327,1.81361265,150.24,150.21,6.21825789]
[1751279414722,8.46821265,150.24,150.22,6.6551]
[1751279416423,1.81361265,150.23,150.22,6.6551]
[1751279419323,1.81361265,150.23,150.21,6.6555]
[1751279420529,1.81361265,150.23,150.22,6.6552]
[1751279423232,6.6546,150.24,150.22,6.6552]
[1751279423433,1.81361265,150.23,150.22,6.6552]
[1751279424331,39.4138,150.26,150.23,6.6545]